bitfinex-derivatives/quotes_ETHF0:USTF0_20240927
["timestamp","ask_amount","ask_price","bid_price","bid_amount"]
[1727464275522,4.02093,2698.2,2698.1,0.37053]
[1727464276021,3.2605,2698.4,2698.3,0.37051]
[1727464276320,3.283,2698.4,2697.7,0.92648]
[1727464276618,3.283,2698.4,2698.1,0.37053]
[1727464276619,0.37052,2698.3,2698.1,0.37053]
[1727464277024,0.37052,2698.2,2698.1,0.37053]
[1727464277820,0.37051,2698.3,2698.2,0.37051]
[1727464278125,0.37052,2698.2,2698.1,0.37052]
[1727464278315,3.6535,2698.4,2698.3,0.37051]
[1727464279028,0.37051,2698.3,2698.2,0.37051]
[1727464281226,0.37051,2698.3,2698.2,0.37052]
[1727464281730,3.6535,2698.4,2698.2,0.37052]
[1727464282027,0.37051,2698.3,2698.2,0.37052]
[1727464282235,0.37052,2698.2,2698.1,0.37052]
[1727464282820,0.37051,2698.3,2698.2,0.37051]
[1727464283427,0.37055,2698.0,2697.8,4.53649812]
[1727464283629,2.89,2697.9,2697.8,4.53649812]
[1727464283833,3.26052,2698.2,2698.1,0.37053]
[1727464284029,0.37056,2697.9,2697.8,3.2078]
[1727464284226,0.92634,2698.1,2697.9,0.37056]
[1727464284426,3.283,2698.0,2697.9,0.37056]
[1727464284630,3.65356,2698.0,2697.9,0.37056]
[1727464285327,0.37056,2697.9,2697.8,0.37057]
[1727464285725,3.283,2698.0,2697.9,0.37056]
[1727464286025,2.89,2698.2,2698.1,0.37053]
[1727464287936,3.26052,2698.2,2698.1,0.37053]
[1727464288230,3.26052,2698.2,2698.0,0.3761]
[1727464288231,0.37053,2698.1,2698.0,0.74664]
[1727464288432,2.89,2698.2,2698.0,0.3761]
[1727464288731,3.26053,2698.2,2698.1,0.37053]
[1727464289335,3.26052,2698.2,2698.1,0.37053]
[1727464290037,2.89,2698.2,2698.1,0.37053]
[1727464290222,2.89,2698.2,2698.0,0.74664]
[1727464290430,3.26053,2698.2,2698.1,0.37053]
[1727464291031,0.37053,2698.1,2698.0,0.74664]
[1727464291239,0.37053,2698.1,2698.0,0.3761]
[1727464291431,0.37055,2698.0,2697.9,3.2078]
[1727464291938,0.37054,2698.1,2698.0,0.37054]
[1727464292338,0.37055,2698.0,2697.9,3.57835]
[1727464292732,0.37056,2697.9,2697.8,1.32869812]
[1727464293642,0.37056,2698.0,2697.9,0.37056]
[1727464294635,0.37054,2698.1,2698.0,0.37054]
[1727464295034,4.07694,2698.1,2698.0,0.37054]
[1727464295337,0.37055,2698.0,2697.8,0.95812812]
[1727464295549,0.37055,2698.0,2697.9,0.37055]
[1727464296240,0.37055,2698.0,2697.9,1.32867812]
[1727464296435,0.37055,2698.0,2697.9,0.37055]
[1727464296632,0.37054,2698.1,2698.0,0.37054]
[1727464296835,3.26052,2698.2,2698.1,0.37053]
[1727464297549,0.37053,2698.1,2698.0,0.37054]
[1727464297846,0.37054,2698.1,2698.0,0.37054]
[1727464298239,3.26052,2698.2,2698.1,0.37053]
[1727464298442,2.89,2698.2,2698.1,0.37053]
[1727464298745,3.26052,2698.2,2698.1,0.37053]
[1727464299240,2.89,2698.2,2698.1,0.37053]
[1727464299436,2.89,2698.2,2698.0,0.3871]
[1727464299437,0.74681,2698.3,2698.2,0.37052]
[1727464301644,0.37052,2698.2,2698.1,0.37052]
[1727464301845,0.3763,2698.3,2698.0,1.34522812]
[1727464302038,0.37053,2698.2,2698.1,0.37053]
[1727464302240,0.37051,2698.3,2698.2,0.37052]
[1727464302434,3.2078,2698.5,2698.4,0.37049]
[1727464305545,0.37047,2698.6,2698.5,0.37048]
[1727464307648,0.37048,2698.5,2698.4,0.37048]
[1727464307845,2.89,2698.5,2698.2,4.16592812]
[1727464308155,0.3672,2698.7,2698.2,3.2078]
[1727464308156,3.26051,2698.3,2698.2,3.2078]
[1727464308451,4.13391,2698.8,2698.6,0.37046]
[1727464308644,0.37045,2698.7,2698.6,0.37046]
[1727464312443,1.31936,2699.0,2698.5,0.4059]
[1727464312648,1.31936,2699.0,2698.8,0.37042]
[1727464312649,0.37043,2698.9,2698.8,0.37042]
[1727464313147,0.3933,2699.0,2698.9,0.37042]
[1727464313148,0.76371,2699.0,2698.9,0.37042]
[1727464313457,3.973,2699.1,2699.0,0.37041]
[1727464314451,3.973,2699.1,2698.4,3.76873625]
[1727464314756,0.7,2698.6,2696.6,0.3709]
[1727464314947,3.2078,2695.7,2694.6,2.89]
[1727464315142,3.2078,2695.5,2694.9,3.2078]
[1727464315350,1.6042957,2696.2,2695.4,3.2078]
[1727464315654,0.51315364,2696.1,2695.8,40.8]
[1727464315854,0.3276022,2696.0,2695.8,44.5096]
[1727464316052,1.6042957,2696.2,2695.8,49.3991]
[1727464316053,0.3276022,2695.9,2695.8,49.3991]
[1727464316353,0.0276022,2695.9,2695.8,59.1087]
[1727464316653,1.6042957,2696.2,2695.8,59.1087]
[1727464316955,1.6042957,2696.2,2695.8,49.3991]
[1727464317353,3.2078,2696.5,2695.8,49.3991]
[1727464317851,0.64874307,2696.4,2695.8,49.3991]
[1727464318242,0.64874307,2696.3,2695.8,49.3991]
[1727464318448,3.2078,2696.5,2695.8,49.3991]
[1727464318650,0.64838204,2696.4,2695.8,49.3991]
[1727464318849,0.64838204,2696.3,2695.8,49.3991]
[1727464319050,0.04838204,2696.4,2695.8,49.3991]
[1727464319348,3.57856,2696.5,2695.8,49.3991]
[1727464320054,0.37077,2696.4,2695.8,49.3991]
[1727464320448,0.37077,2696.4,2695.8,8.5991]
[1727464320859,3.57856,2696.5,2695.8,8.5991]
[1727464321052,3.57856,2696.5,2696.4,40.8]
[1727464321754,0.37075,2696.5,2696.4,40.8]
[1727464321955,0.76565,2696.6,2696.4,40.8]
[1727464322456,0.3949,2696.6,2696.4,49.3991]
[1727464323156,0.76564,2696.6,2696.4,49.3991]
[1727464324056,0.37075,2696.5,2696.4,49.3991]
[1727464325347,0.76564,2696.6,2696.4,49.3991]
[1727464325551,0.76564,2696.6,2696.4,8.5991]
[1727464326148,0.37075,2696.5,2696.4,8.5991]
[1727464326557,0.76565,2696.6,2696.4,49.3991]
[1727464326948,0.37075,2696.5,2696.4,49.3991]
[1727464327150,1.33420412,2696.5,2696.4,49.3991]
[1727464328355,1.73137553,2696.5,2696.4,49.3991]
[1727464329361,1.36062553,2696.5,2696.4,49.3991]
[1727464329749,1.73137553,2696.5,2696.4,40.8]
[1727464329948,1.73137553,2696.5,2695.7,3.2078]
[1727464329949,0.37085,2695.8,2695.7,3.2078]
[1727464330154,2.42252942,2697.0,2695.7,3.2078]
[1727464330354,0.23194888,2696.5,2695.7,3.2078]
[1727464330558,3.56,2701.2,2698.7,3.2078]
[1727464330754,3.56,2701.2,2699.6,4.28512165]
[1727464330755,3.56,2700.4,2699.6,4.28512165]
[1727464330951,0.96121742,2699.8,2699.6,3.2078]
[1727464331258,0.96121742,2699.8,2698.8,0.7543]
[1727464331259,3.56,2700.0,2699.0,3.2078]
[1727464331455,3.56,2700.0,2699.4,3.2078]
[1727464331456,0.37029,2699.9,2699.4,3.2078]
[1727464331656,0.37032,2699.7,2699.4,3.2078]
[1727464331859,3.704,2699.6,2699.0,3.2078]
[1727464332053,3.704,2699.6,2699.0,4.28512165]
[1727464332054,0.37033,2699.6,2699.0,4.28512165]
[1727464332958,0.37034,2699.5,2699.0,4.28512165]
[1727464333360,3.2078,2699.8,2699.0,4.28512165]
[1727464333554,0.37034,2699.5,2699.0,4.28512165]
[1727464333754,3.2078,2699.5,2699.0,3.2078]
[1727464333954,0.37037,2699.3,2699.0,3.2078]
[1727464334161,2.68,2699.3,2699.0,3.2078]
[1727464334364,3.7048,2699.2,2698.7,3.2078]
[1727464334663,0.37042,2699.0,2698.7,3.2078]
[1727464335165,3.7056,2698.9,2698.7,3.2078]
[1727464335661,3.7056,2698.8,2698.7,3.2078]
[1727464335865,0.3704,2699.1,2698.7,3.2078]
[1727464336255,4.076,2699.1,2698.7,3.2078]
[1727464336767,28.0,2699.0,2698.7,3.2078]
[1727464337257,31.7056,2699.0,2698.7,3.2078]
[1727464340461,32.07601,2699.0,2698.7,3.2078]
[1727464340768,31.7056,2699.0,2698.7,3.2078]
[1727464341156,32.07602,2699.0,2698.7,3.2078]
[1727464341960,28.37042,2699.0,2698.7,4.28512165]
[1727464342162,0.37043,2698.9,2698.7,4.28512165]
[1727464342873,0.37044,2698.8,2698.7,3.2078]
[1727464343059,0.37044,2698.8,2698.7,4.28512165]
[1727464344664,28.0,2699.0,2698.7,4.28512165]
[1727464344864,0.37044,2698.8,2698.7,4.28512165]
[1727464345974,5.00214,2698.8,2698.7,3.2078]
[1727464346158,0.92614,2698.7,2698.2,3.2078]
[1727464346365,0.37051,2698.3,2698.2,3.2078]
[1727464346868,4.07691,2698.3,2698.2,3.2078]
[1727464347674,5.00318,2698.3,2698.2,3.2078]
[1727464348371,0.92636,2698.1,2697.4,3.2078]
[1727464348575,0.3706,2697.6,2697.5,1.07732165]
[1727464349865,0.37062,2697.5,2697.4,3.2078]
[1727464350066,0.37061,2697.6,2697.4,4.28512165]
[1727464351172,0.37059,2697.7,2697.4,4.28512165]
[1727464351362,0.3706,2697.6,2697.4,4.28512165]
[1727464352165,0.3706,2697.7,2697.4,4.28512165]
[1727464352367,0.37061,2697.6,2697.4,4.28512165]
[1727464352768,0.37059,2697.7,2697.4,4.28512165]
[1727464352969,0.3706,2697.6,2697.4,4.28512165]
[1727464353571,0.37061,2697.6,2697.4,4.28512165]
[1727464353873,0.37066,2697.2,2697.1,3.2078]
[1727464354075,0.37066,2697.2,2697.1,1.07732165]
[1727464354782,3.708,2697.2,2696.9,3.2078]
[1727464355069,0.37068,2697.0,2696.9,3.2078]
[1727464355469,0.37068,2697.1,2696.9,4.28512165]
[1727464356081,0.37068,2697.0,2696.9,4.28512165]
[1727464356369,0.92658,2697.4,2696.9,4.28512165]
[1727464356774,0.37068,2697.0,2696.9,4.28512165]
[1727464357566,0.403,2697.8,2696.9,22.44422165]
[1727464357771,0.403,2697.8,2697.5,1.07732165]
[1727464357772,0.37061,2697.6,2697.5,1.07732165]
[1727464358678,0.3706,2697.7,2697.5,15.67642165]
[1727464358874,0.92637,2698.1,2697.6,1.07732165]
[1727464359177,0.37056,2697.9,2697.8,1.07732165]
[1727464359367,28.0,2698.1,2697.7,3.2078]
[1727464359368,0.37055,2698.0,2697.9,1.07732165]
[1727464360080,1.29693,2698.0,2697.9,1.07732165]
[1727464367578,0.37055,2698.0,2697.9,15.67642165]
[1727464367780,0.37055,2698.0,2697.9,18.88422165]
[1727464368189,0.92632,2698.2,2697.9,18.88422165]
[1727464368483,0.37055,2698.0,2697.9,17.8069]
[1727464368884,0.37055,2698.0,2697.9,18.88422165]
[1727464371889,0.37051,2698.3,2698.0,0.37054]
[1727464372091,0.37051,2698.3,2698.2,3.2078]
[1727464372292,0.3705,2698.4,2698.2,4.28512165]
[1727464372474,0.3705,2698.4,2698.3,0.3981]
[1727464372679,0.3705,2698.4,2698.3,1.47542165]
[1727464372883,0.3705,2698.4,2698.3,16.07452165]
[1727464373987,1.29674,2698.4,2698.3,16.07452165]
[1727464374298,1.29674,2698.4,2698.3,1.07732165]
[1727464374883,1.29674,2698.4,2697.5,3.6102]
[1727464374884,6.10902939,2698.4,2697.5,3.6102]
[1727464375091,0.3706,2697.6,2697.5,0.15939165]
[1727464375390,2.74672839,2697.6,2697.5,0.15939165]
[1727464375585,0.3706,2697.6,2697.5,14.75849165]
[1727464376184,0.3706,2697.7,2697.5,14.75849165]
[1727464376386,0.3706,2697.7,2697.5,14.5991]
[1727464376582,0.3706,2697.7,2697.6,0.15939165]
[1727464376991,0.3706,2697.7,2697.6,14.75849165]
[1727464379800,0.37058,2697.8,2697.6,15.12909165]
[1727464379995,0.37058,2697.8,2697.7,3.2078]
[1727464380192,0.37058,2697.8,2697.7,3.36719165]
[1727464380394,0.37058,2697.8,2697.7,17.96629165]
[1727464381896,0.37056,2697.9,2697.7,17.96629165]
[1727464382101,1.82017839,2698.0,2697.8,0.52996165]
[1727464382393,1.82017839,2698.0,2697.9,0.15939165]
[1727464382791,1.82017839,2698.0,2697.9,14.75849165]
[1727464383703,0.37056,2698.0,2697.9,14.75849165]
[1727464383901,2.30252097,2698.0,2697.9,14.75849165]
[1727464385197,3.22890097,2698.0,2697.9,14.75849165]
[1727464386803,0.37056,2698.0,2697.9,14.75849165]
[1727464388100,2.30252097,2698.0,2697.9,14.75849165]
[1727464389197,2.30251097,2698.0,2697.9,14.75849165]
[1727464389398,1.93196097,2698.0,2697.9,15.12905165]
[1727464389600,0.37055,2698.0,2697.9,14.75849165]
[1727464389994,2.30897585,2698.0,2697.9,14.75849165]
[1727464390203,0.37055,2698.0,2697.9,14.75849165]
[1727464393213,1.29701,2697.8,2697.7,3.2078]
[1727464393503,0.37064,2697.3,2697.2,3.2078]
[1727464393906,0.37064,2697.3,2697.2,17.96629165]
[1727464394296,1.82576276,2697.4,2697.2,17.96629165]
[1727464394503,1.82576276,2697.4,2697.3,0.15939165]
[1727464395008,1.82576276,2697.4,2697.3,14.75849165]
[1727464395409,0.37063,2697.4,2697.3,14.75849165]
[1727464396010,1.8258596,2697.4,2697.3,14.75849165]
[1727464396806,1.4552296,2697.4,2697.3,14.75849165]
[1727464397008,1.82586935,2697.4,2697.3,14.75849165]
[1727464397409,0.37063,2697.4,2697.3,14.75849165]
[1727464399013,2.30953002,2697.4,2697.3,14.75849165]
[1727464400902,0.37063,2697.4,2697.3,14.75849165]
[1727464401210,2.30953002,2697.4,2697.3,14.75849165]
[1727464401811,1.93890002,2697.4,2697.3,15.12913165]
[1727464402013,1.93890002,2697.5,2697.4,0.37063]
[1727464402319,1.93890002,2697.5,2697.4,0.53002165]
[1727464402513,1.93890002,2697.5,2697.4,15.12912165]
[1727464403610,0.37062,2697.5,2697.4,14.75849165]
[1727464403808,2.30952002,2697.5,2697.4,14.75849165]
[1727464404005,0.37062,2697.5,2697.4,14.75849165]
[1727464404609,2.30951002,2697.6,2697.4,15.12912165]
[1727464404818,1.93890002,2697.6,2697.5,3.73781165]
[1727464405220,1.93890002,2697.6,2697.5,18.33691165]
[1727464405518,2.78552121,2697.9,2697.5,18.33691165]
[1727464405519,1.93890002,2697.8,2697.7,0.37059]
[1727464405718,2.63790002,2697.9,2697.7,3.04939165]
[1727464406019,0.699,2697.9,2697.8,4.13536165]
[1727464406218,0.699,2697.9,2697.8,4.50636165]
[1727464406414,0.699,2697.9,2697.8,21.99546165]
[1727464406619,2.1550269,2697.9,2697.8,21.99546165]
[1727464407213,2.1550269,2697.9,2697.8,19.10546165]
[1727464407618,2.5255869,2697.9,2697.8,18.73489165]
[1727464408121,2.1550269,2697.9,2697.8,19.10546165]
[1727464408316,2.5255869,2697.9,2697.8,19.10546165]
[1727464409718,2.5255869,2697.9,2697.8,18.73489165]
[1727464410024,2.5255869,2697.9,2697.8,19.10546165]
[1727464410624,2.5255869,2697.9,2697.8,18.36389165]
[1727464410820,1.99597,2697.9,2697.8,18.36389165]
[1727464411013,3.45177587,2697.9,2697.8,18.36389165]
[1727464412128,2.52536587,2697.9,2697.8,18.73446165]
[1727464412314,3.45177587,2697.9,2697.8,18.36389165]
[1727464412623,1.99597,2697.9,2697.8,17.96629165]
[1727464413013,2.37787,2697.9,2697.8,17.96629165]
[1727464414217,1.45146,2697.9,2697.8,17.96629165]
[1727464416115,0.699,2697.9,2697.8,17.96629165]
[1727464416312,0.699,2697.9,2697.8,18.33686165]
[1727464416723,1.06956,2697.9,2697.8,18.33686165]
[1727464416920,0.699,2697.9,2697.8,18.33686165]
[1727464417519,0.699,2698.0,2697.9,0.37056]
[1727464417917,0.699,2698.0,2697.9,15.12905165]
[1727464418724,1.06955,2698.0,2697.9,15.12905165]
[1727464420324,1.06955,2698.0,2697.9,14.75849165]
[1727464421528,1.06955,2698.0,2697.9,15.12905165]
[1727464425333,1.99593,2698.0,2697.9,18.33685165]
[1727464425929,1.06955,2698.0,2697.9,18.33685165]
[1727464426237,0.699,2698.0,2697.9,18.33685165]
[1727464427031,2.63996247,2698.0,2697.9,18.33685165]
[1727464428934,2.15449626,2698.0,2697.9,18.33685165]
[1727464429339,0.699,2698.0,2697.9,18.33685165]
[1727464430520,0.699,2698.0,2697.9,15.12905165]
[1727464430724,0.699,2698.0,2697.9,18.33685165]
[1727464431935,0.699,2698.0,2697.9,19.26326165]
[1727464432623,0.699,2698.0,2697.9,29.07967165]
[1727464432830,0.37049,2698.5,2698.4,0.37048]
[1727464433136,0.37049,2698.5,2698.4,3.57828]
[1727464433437,0.37049,2698.5,2698.4,17.78752127]
[1727464434330,0.37047,2698.6,2698.5,0.37047]
[1727464434630,0.37047,2698.6,2698.5,10.87411127]
[1727464435128,0.37047,2698.6,2698.5,10.50364127]
[1727464435726,0.37047,2698.6,2698.5,10.87412127]
[1727464436123,0.37047,2698.6,2698.5,10.50364127]
[1727464436835,0.3955,2698.9,2698.5,10.50364127]
[1727464437026,0.37046,2698.7,2698.5,10.50364127]
[1727464437227,0.37046,2698.7,2698.6,3.2078]
[1727464437628,0.37045,2698.8,2698.6,14.08189127]
[1727464437831,0.3955,2698.9,2698.6,14.08189127]
[1727464438029,0.37045,2698.7,2698.6,13.71144127]
[1727464438935,0.3955,2698.9,2698.6,13.71144127]
[1727464439135,0.37045,2698.7,2698.6,13.71144127]
[1727464439929,0.37045,2698.8,2698.6,14.08190127]
[1727464440237,0.37045,2698.7,2698.6,13.71144127]
[1727464440825,0.37044,2698.8,2698.6,14.08190127]
[1727464442135,0.37045,2698.7,2698.6,14.08190127]
[1727464442433,0.37041,2699.0,2698.8,0.37043]
[1727464442634,3.96860835,2699.2,2698.9,6.0978]
[1727464442834,0.37033,2699.6,2699.4,0.37034]
[1727464443039,0.37033,2699.6,2699.5,3.2078]
[1727464443241,0.37033,2699.6,2699.5,13.71144127]
[1727464445241,2.78888629,2699.6,2699.5,13.71144127]
[1727464445743,2.41855629,2699.6,2699.5,13.71144127]
[1727464445942,2.78888629,2699.6,2699.5,13.71144127]
[1727464447739,0.37033,2699.6,2699.5,13.71144127]
[1727464447930,0.37033,2699.6,2699.5,3.2078]
[1727464448136,3.71471629,2699.6,2699.5,3.2078]
[1727464448534,3.71471629,2699.6,2699.2,0.3793]
[1727464448535,1.2963,2699.3,2699.2,3.2078]
[1727464448734,4.1863,2699.3,2699.2,3.2078]
[1727464449643,1.2963,2699.3,2699.2,3.2078]
[1727464450950,3.71454998,2699.3,2699.2,3.2078]
[1727464451144,1.2963,2699.3,2699.2,3.2078]
[1727464451951,0.37037,2699.4,2699.2,3.2078]
[1727464452146,0.37037,2699.3,2699.2,3.6095]
[1727464452649,0.37035,2699.5,2699.3,0.37036]
[1727464452950,0.37034,2699.6,2699.4,0.37035]
[1727464453141,0.37034,2699.6,2699.5,3.2078]
[1727464453338,3.72489998,2699.9,2699.5,3.2078]
[1727464453339,0.37032,2699.7,2699.5,3.2078]
[1727464453554,0.37032,2699.7,2699.5,13.71144127]
[1727464453752,0.37033,2699.6,2699.5,13.71144127]
[1727464454147,0.37032,2699.7,2699.5,14.08178127]
[1727464454353,1.30665,2699.9,2699.5,13.71144127]
[1727464454654,0.37033,2699.7,2699.5,13.71144127]
[1727464454867,0.37033,2699.6,2699.5,13.71144127]
[1727464456867,0.37032,2699.7,2699.5,14.08178127]
[1727464457269,0.92577,2699.8,2699.5,14.08178127]
[1727464457463,0.37033,2699.6,2699.5,14.08178127]
[1727464457664,0.37026,2700.1,2699.9,0.37028]
[1727464457868,0.37026,2700.2,2700.0,3.9925]
[1727464458062,0.92556,2700.4,2700.0,4.36277]
[1727464458362,3.7097159,2700.4,2700.3,3.2078]
[1727464458564,1.29578,2700.4,2700.3,3.2078]
[1727464459061,0.37022,2700.4,2700.3,3.2078]
[1727464459366,0.37021,2700.5,2700.3,3.57802]
[1727464459871,0.37021,2700.5,2700.3,3.2078]
[1727464460171,0.37021,2700.5,2700.3,13.71144127]
[1727464460367,0.37021,2700.5,2700.3,14.08167127]
[1727464461063,3.7175259,2700.9,2700.3,13.71144127]
[1727464461272,0.37016,2700.8,2700.7,3.2078]
[1727464461468,0.37016,2700.8,2700.7,3.6019]
[1727464461768,6.38254425,2701.1,2700.7,3.97207]
[1727464461959,0.37016,2700.9,2700.7,14.47571127]
[1727464462265,4.33873835,2701.1,2700.8,0.37016]
[1727464462768,4.33873835,2701.1,2700.8,10.87380127]
[1727464463167,3.96860835,2701.1,2700.9,0.37015]
[1727464463471,0.37012,2701.1,2700.8,10.87379127]
[1727464463870,0.37014,2701.0,2700.8,10.50364127]
[1727464464660,0.92524,2701.3,2700.8,10.50364127]
[1727464464970,0.37013,2701.1,2700.8,10.87380127]
[1727464465274,0.37014,2701.0,2700.8,10.50364127]
[1727464466160,0.92524,2701.3,2700.8,10.50364127]
[1727464466664,0.37014,2701.0,2700.8,10.50364127]
[1727464467461,0.37015,2700.9,2700.8,10.50364127]
[1727464468864,0.37014,2701.0,2700.8,10.50364127]
[1727464469371,1.2691,2701.1,2700.8,10.87380127]
[1727464469773,0.37014,2701.0,2700.8,10.87380127]
[1727464469971,1.2691,2701.1,2700.8,10.87380127]
[1727464470277,0.37014,2701.0,2700.8,10.50364127]
[1727464471567,0.37014,2701.0,2700.8,10.87380127]
[1727464472375,1.63923,2701.1,2700.8,10.87380127]
[1727464472572,0.92542,2700.8,2700.7,3.2078]
[1727464472763,0.3702,2700.6,2700.4,3.2078]
[1727464473076,0.3702,2700.6,2700.4,13.71144127]
[1727464473666,0.3702,2700.5,2700.4,13.71144127]
[1727464474872,1.29572,2700.5,2700.4,13.71144127]
[1727464475472,1.29572,2700.5,2700.4,3.2078]
[1727464475871,5.92444,2700.5,2700.4,3.2078]
[1727464476466,8.54854,2700.5,2700.4,3.2078]
[1727464477582,7.62302,2700.5,2700.4,3.2078]
[1727464478875,0.37027,2700.0,2699.8,6.46809]
[1727464479177,0.37027,2700.0,2699.8,13.71144127]
[1727464479370,0.37029,2699.9,2699.8,13.71144127]
[1727464479886,0.37029,2699.9,2699.8,3.2078]
[1727464481869,0.3703,2699.8,2699.7,1.3476]
[1727464482074,0.3703,2699.8,2699.7,11.85124127]
[1727464484169,0.3703,2699.8,2699.7,12.22155127]
[1727464484580,0.3703,2699.8,2699.7,11.85124127]
[1727464485086,0.3703,2699.8,2699.7,12.22155127]
[1727464485777,0.37029,2699.9,2699.8,0.3703]
[1727464485985,0.37028,2700.0,2699.9,0.37029]
[1727464486179,0.37027,2700.1,2700.0,0.37026]
[1727464486677,0.37027,2700.1,2700.0,10.87390127]
[1727464488074,0.37027,2700.1,2700.0,10.50364127]
[1727464488282,2.23599,2700.3,2700.0,10.87391127]
[1727464488486,0.37026,2700.1,2700.0,10.50364127]
[1727464488679,0.37026,2700.1,2700.0,13.71144127]
[1727464489188,0.37026,2700.2,2700.0,13.71144127]
[1727464490079,2.23599,2700.3,2700.0,13.71144127]
[1727464490275,0.37026,2700.2,2700.0,13.71144127]
[1727464490678,1.3104,2700.3,2700.0,13.71144127]
[1727464490679,0.37026,2700.1,2700.0,13.71144127]
[1727464491386,1.3104,2700.3,2700.0,13.71144127]
[1727464491988,0.37025,2700.2,2700.0,13.71144127]
[1727464492478,4.16964625,2700.5,2700.0,13.71144127]
[1727464492784,0.37026,2700.1,2700.0,13.71144127]
[1727464495383,1.81996838,2700.2,2700.0,13.71144127]
[1727464495578,0.37026,2700.1,2700.0,13.71144127]
[1727464495884,1.44971838,2700.2,2700.0,13.71144127]
[1727464496273,1.81996838,2700.2,2700.0,13.71144127]
[1727464496488,0.37025,2700.2,2700.0,13.71144127]
[1727464496781,0.37026,2700.1,2700.0,13.71144127]
[1727464497285,2.37527838,2700.4,2700.0,13.71144127]
[1727464497286,0.37024,2700.3,2700.0,13.71144127]
[1727464497675,0.37023,2700.3,2700.0,13.71144127]
[1727464497875,0.37024,2700.3,2700.0,13.71144127]
[1727464498679,0.37023,2700.3,2700.0,13.71144127]
[1727464498887,0.37023,2700.3,2700.0,14.08171127]
[1727464499081,0.37025,2700.2,2700.0,13.71144127]
[1727464499476,0.37024,2700.3,2700.0,13.71144127]
[1727464499673,0.37024,2700.3,2700.0,14.08170127]
[1727464499984,0.37026,2700.1,2700.0,13.71144127]
[1727464500484,0.37027,2700.0,2699.9,3.2078]
[1727464500682,1.29601,2699.9,2699.8,10.50364127]
[1727464500884,1.29606,2699.8,2699.7,1.3476]
[1727464501084,0.3703,2699.8,2699.7,11.85124127]
[1727464501286,1.45255369,2699.9,2699.7,12.22155127]
[1727464501588,3.20931625,2700.0,2699.7,11.85124127]
[1727464501589,1.45255369,2700.0,2699.7,11.85124127]
[1727464501880,1.45255369,2700.2,2700.1,0.37026]
[1727464502082,1.45255369,2700.3,2700.1,0.37026]
[1727464502281,1.45255369,2700.4,2700.3,0.37023]
[1727464502483,1.45255369,2700.7,2700.6,0.37019]
[1727464502687,1.45255369,2700.8,2700.6,3.2078]
[1727464502883,0.37016,2700.9,2700.6,14.08162127]
[1727464503082,1.82270369,2701.0,2700.7,0.37017]
[1727464503384,1.82270369,2701.0,2700.7,1.68147]
[1727464503385,0.37015,2700.9,2700.7,1.68147]
[1727464503591,1.45255369,2701.0,2700.9,0.37015]
[1727464503892,0.37014,2701.0,2700.8,0.37016]
[1727464504082,1.82268369,2701.1,2700.9,1.3005]
[1727464504479,0.37014,2701.0,2700.9,11.80414127]
[1727464504683,1.45255369,2701.1,2700.9,15.38209127]
[1727464504885,1.45255369,2701.1,2700.9,19.08448127]
[1727464505187,1.45255369,2701.2,2700.9,18.71434127]
[1727464505382,1.82265369,2701.3,2701.0,0.37014]
[1727464505578,1.45255369,2701.3,2701.2,3.57791]
[1727464505780,0.37009,2701.3,2701.2,3.2078]
[1727464505976,0.37009,2701.3,2701.2,13.71144127]
[1727464506181,1.45255369,2701.5,2701.2,14.08154127]
[1727464506377,1.82262369,2701.6,2701.2,14.08154127]
[1727464506686,0.37007,2701.5,2701.2,14.08155127]
[1727464506992,0.37007,2701.5,2701.2,13.71144127]
[1727464507580,1.45255369,2701.6,2701.2,16.60144127]
[1727464507783,1.82259369,2701.7,2701.5,3.2078]
[1727464507986,0.37005,2701.6,2701.5,3.2078]
[1727464508179,0.37005,2701.6,2701.5,13.71144127]
[1727464509886,4.18519,2701.6,2701.5,3.2078]
[1727464510491,5.50249,2701.6,2701.5,3.2078]
[1727464511199,5.93355,2701.6,2701.5,3.2078]
[1727464511389,3.04355,2701.6,2701.5,3.2078]
[1727464511595,5.74237625,2701.9,2701.5,13.71144127]
[1727464511596,3.2524745,2701.7,2701.5,13.71144127]
[1727464511891,2.41628204,2701.6,2701.5,14.08151127]
[1727464512498,2.41628204,2701.6,2701.5,14.08150127]
[1727464512499,1.93240463,2701.6,2701.5,14.08150127]
[1727464512802,2.41628204,2701.7,2701.5,14.08150127]
[1727464513389,1.93194962,2701.6,2701.5,14.08150127]
[1727464514190,1.93194962,2701.6,2701.5,13.71144127]
[1727464514589,1.93194962,2701.6,2701.5,14.08151127]
[1727464514897,1.93194962,2701.6,2701.5,13.71144127]
[1727464515287,1.93194962,2701.6,2701.5,14.08151127]
[1727464515488,1.93194962,2701.6,2701.5,13.71144127]
[1727464515888,2.30199962,2701.6,2701.5,13.71144127]
[1727464516093,1.93194962,2701.6,2701.5,13.71144127]
[1727464516292,0.37005,2701.6,2701.5,13.71144127]
[1727464516694,1.93194962,2701.6,2701.5,14.08151127]
[1727464516900,0.37005,2701.6,2701.5,13.71144127]
[1727464517092,2.30198962,2701.7,2701.5,14.08150127]
[1727464517590,1.93194962,2701.7,2701.6,0.37005]
[1727464517792,2.30198962,2701.7,2701.6,10.50364127]
[1727464517986,1.93194962,2701.7,2701.6,12.17229127]
[1727464518394,2.30198962,2701.8,2701.6,12.17229127]
[1727464518698,0.37004,2701.8,2701.6,12.17229127]
[1727464519791,1.81725543,2702.1,2701.9,0.37001]
[1727464519993,5.90055797,2702.3,2701.9,0.37001]
[1727464519994,0.36998,2702.2,2701.9,0.37001]
[1727464520291,3.96860835,2702.3,2702.1,3.2078]
[1727464520292,4.33856835,2702.3,2702.1,3.2078]
[1727464520496,0.36997,2702.2,2702.1,3.2078]
[1727464520797,0.36996,2702.4,2702.1,13.71144127]
[1727464520992,1.3037,2702.5,2702.1,13.71144127]
[1727464521198,0.36996,2702.3,2702.2,1.3325]
[1727464521496,0.36993,2702.6,2702.2,1.70246]
[1727464521696,0.36993,2702.6,2702.4,3.2078]
[1727464522200,0.36992,2702.6,2702.4,13.71144127]